bitfinex/quotes_BTCUSD_20220304
["timestamp","ask_amount","ask_price","bid_price","bid_amount"]
[1646416047281,0.084941,40808.0,40797.0,0.3]
[1646416047479,0.084941,40805.0,40795.0,0.15]
[1646416047681,0.134941,40803.0,40794.0,0.1201]
[1646416047880,0.084941,40801.0,40793.0,0.20274]
[1646416048082,0.084941,40799.0,40793.0,0.20274]
[1646416048283,0.134941,40799.0,40793.0,0.20274]
[1646416048478,0.134941,40799.0,40793.0,0.49941219]
[1646416048879,0.134941,40799.0,40793.0,0.34941219]
[1646416049082,0.134941,40799.0,40793.0,0.49941219]
[1646416049347,0.134941,40799.0,40793.0,0.34941219]
[1646416049547,0.02505573,40798.0,40793.0,0.34941219]
[1646416049748,0.084941,40797.0,40793.0,0.05274]
[1646416050150,0.134941,40797.0,40793.0,0.05274]
[1646416050951,0.134941,40797.0,40793.0,0.33032442]
[1646416051549,0.084941,40795.0,40793.0,0.33032442]
[1646416051951,0.134941,40795.0,40793.0,0.33032442]
[1646416053382,0.134941,40795.0,40793.0,0.56743225]
[1646416054683,0.134941,40795.0,40793.0,0.33032442]
[1646416054882,0.134941,40795.0,40793.0,0.27758442]
[1646416055883,0.134941,40795.0,40793.0,0.50168206]
[1646416057127,0.134941,40795.0,40794.0,0.3]
[1646416057128,0.05,40795.0,40794.0,0.3]
[1646416057321,0.134941,40795.0,40794.0,0.3]
[1646416057523,0.05,40795.0,40794.0,0.3]
[1646416057821,0.084941,40800.0,40796.0,0.061335]
[1646416058021,0.134941,40800.0,40796.0,0.061335]
[1646416058625,0.134941,40800.0,40795.0,0.122667]
[1646416059722,0.234941,40800.0,40795.0,0.122667]
[1646416060574,0.234941,40800.0,40796.0,0.30752123]
[1646416061071,0.134941,40800.0,40796.0,0.30752123]
[1646416061276,0.134941,40800.0,40796.0,0.061333]
[1646416061673,0.134941,40800.0,40797.0,0.25655896]
[1646416065434,0.134941,40800.0,40796.0,0.061333]
[1646416066633,0.134941,40800.0,40796.0,0.34929774]
[1646416067035,0.134941,40800.0,40796.0,0.60981977]
[1646416067237,0.134941,40800.0,40796.0,0.34929774]
[1646416067971,0.0771709,40800.0,40796.0,0.34929774]
[1646416068171,0.0771709,40800.0,40796.0,0.061333]
[1646416068375,0.3,40799.0,40784.0,0.875789]
[1646416068574,0.52684977,40798.0,40784.0,0.875789]
[1646416068773,0.1,40797.0,40784.0,0.449089]
[1646416068976,0.1,40797.0,40786.0,0.21804278]
[1646416068977,0.126166,40796.0,40786.0,0.21804278]
[1646416069172,0.126166,40796.0,40786.0,0.51875079]
[1646416069373,0.176166,40796.0,40786.0,0.30070801]
[1646416070373,0.061351,40794.0,40786.0,0.30070801]
[1646416070573,0.077166,40793.0,40790.0,0.21240167]
[1646416070775,0.127166,40793.0,40788.0,0.32134034]
[1646416071274,0.120748,40793.0,40788.0,0.32134034]
[1646416071721,0.120748,40793.0,40789.0,0.28157478]
[1646416071925,0.120748,40793.0,40788.0,0.32134034]
[1646416073123,0.120748,40793.0,40787.0,0.27331359]
[1646416073324,0.220748,40793.0,40784.0,0.122689]
[1646416074324,0.220748,40793.0,40784.0,0.39874621]
[1646416074523,0.220748,40793.0,40788.0,0.20525642]
[1646416074924,0.220748,40793.0,40788.0,0.26660442]
[1646416075124,0.62143177,40793.0,40788.0,0.061348]
[1646416076783,0.40068377,40792.0,40788.0,0.061348]
[1646416076981,0.077166,40791.0,40788.0,0.061348]
[1646416077381,0.127166,40791.0,40788.0,0.061348]
[1646416078482,0.127166,40791.0,40781.0,0.4962]
[1646416078483,0.049,40790.0,40781.0,0.4962]
[1646416078682,0.127166,40789.0,40779.0,0.061364]
[1646416078881,0.176166,40789.0,40779.0,0.061364]
[1646416079331,0.176166,40789.0,40779.0,0.30458679]
[1646416079725,0.061363,40788.0,40779.0,0.35458679]
[1646416079926,0.077166,40787.0,40779.0,0.35458679]
[1646416080125,0.127166,40787.0,40779.0,0.35458679]
[1646416080728,0.15,40788.0,40780.0,0.3]
[1646416081226,0.077166,40787.0,40783.0,0.061352]
[1646416081426,0.077166,40787.0,40780.0,0.3]
[1646416081627,0.127166,40787.0,40786.0,0.25647057]
[1646416081830,0.077166,40787.0,40786.0,0.25647057]
[1646416082027,0.127166,40787.0,40786.0,0.25647057]
[1646416082980,0.08537243,40796.0,40787.0,1.25]
[1646416083185,0.0153441,40801.0,40787.0,1.25]
[1646416083186,0.005,40789.0,40787.0,1.25]
[1646416083388,0.005,40789.0,40788.0,0.45]
[1646416083582,0.005,40789.0,40788.0,0.5]
[1646416084181,0.005,40789.0,40788.0,0.45]
[1646416084387,0.005,40789.0,40788.0,0.63399664]
[1646416084983,0.00019531,40801.0,40788.0,0.63399664]
[1646416085183,0.00019531,40801.0,40798.0,0.3154078]
[1646416085382,0.50076924,40804.0,40798.0,0.3154078]
[1646416085584,0.00019532,40801.0,40798.0,0.3154078]
[1646416086583,0.15,40804.0,40798.0,0.3154078]
[1646416086829,0.00019532,40802.0,40798.0,0.3154078]
[1646416087725,0.15,40804.0,40798.0,0.3154078]
[1646416087926,0.00019532,40802.0,40798.0,0.3154078]
[1646416088927,0.15,40804.0,40798.0,0.3154078]
[1646416089126,0.00019532,40802.0,40798.0,0.3154078]
[1646416090127,0.15,40804.0,40798.0,0.3154078]
[1646416090327,0.00019531,40802.0,40798.0,0.3154078]
[1646416091176,0.00019531,40802.0,40799.0,0.20345616]
[1646416091377,0.15,40804.0,40798.0,0.3154078]
[1646416091578,0.45076924,40806.0,40798.0,0.3154078]
[1646416091579,7.17e-05,40802.0,40798.0,0.3154078]
[1646416091779,7.17e-05,40802.0,40798.0,0.3654078]
[1646416091979,7.17e-05,40802.0,40799.0,0.05727486]
[1646416092185,1.7e-06,40802.0,40801.0,0.16452]
[1646416092386,0.06404761,40811.0,40802.0,0.3679]
[1646416092581,0.06404761,40811.0,40810.0,0.83509686]
[1646416092779,0.06404761,40811.0,40810.0,1.13509686]
[1646416092981,0.06404761,40811.0,40810.0,1.18509686]
[1646416093180,0.01,40819.0,40815.0,0.05681961]
[1646416093181,0.002,40816.0,40815.0,0.05681961]
[1646416093380,0.002,40816.0,40815.0,0.6679]
[1646416093579,0.002,40816.0,40815.0,1.14391753]
[1646416093980,0.002,40816.0,40815.0,0.77601753]
[1646416094232,0.002,40816.0,40815.0,1.14391753]
[1646416094530,0.01,40819.0,40816.0,0.62622601]
[1646416094733,0.01,40819.0,40816.0,0.25832601]
[1646416095331,0.01,40819.0,40818.0,0.15]
[1646416095634,0.01,40819.0,40818.0,0.8179]
[1646416095830,0.01,40819.0,40818.0,0.8679]
[1646416097031,0.01,40819.0,40818.0,0.5]
[1646416097336,0.01,40819.0,40818.0,0.8179]
[1646416098475,0.01,40819.0,40818.0,0.45]
[1646416099175,0.005,40819.0,40818.0,0.5]
[1646416101178,0.005,40819.0,40818.0,0.45]
[1646416101581,0.15,40831.0,40815.0,0.122581]
[1646416101841,0.00521416,40829.0,40813.0,0.3]
[1646416102040,0.00459183,40828.0,40813.0,0.3]
[1646416102544,0.061308,40825.0,40815.0,0.061306]
[1646416102742,0.061308,40825.0,40816.0,0.26938442]
[1646416103342,0.061308,40825.0,40816.0,0.56938442]
[1646416103543,8.46e-05,40823.0,40816.0,0.56938442]
[1646416103743,8.46e-05,40823.0,40816.0,0.75259981]
[1646416103942,8.46e-05,40823.0,40816.0,0.69198042]
[1646416104546,0.00521416,40829.0,40817.0,0.15]
[1646416104745,0.00521416,40829.0,40824.0,0.31302017]
[1646416105779,0.00521416,40829.0,40821.0,0.122578]
[1646416105980,0.00543766,40829.0,40821.0,0.122578]
[1646416106781,0.00543766,40829.0,40822.0,0.28574089]
[1646416106993,0.00521416,40829.0,40822.0,0.28574089]
[1646416107180,0.00521416,40829.0,40822.0,0.58574089]
[1646416107181,0.00022351,40827.0,40822.0,0.58574089]
[1646416107381,0.00022351,40827.0,40823.0,0.061288]
[1646416108185,0.00521416,40829.0,40823.0,0.061288]
[1646416108382,0.00022351,40827.0,40823.0,0.061288]
[1646416109426,0.006,40828.0,40823.0,0.061288]
[1646416109632,0.00021414,40827.0,40824.0,0.27528386]
[1646416109925,0.00021414,40827.0,40825.0,0.3]
[1646416110529,0.00521416,40829.0,40825.0,0.3]
[1646416110726,0.00021413,40828.0,40825.0,0.3]
[1646416111631,0.00021413,40828.0,40825.0,0.411285]
[1646416111827,0.00521416,40829.0,40825.0,0.53383]
[1646416112028,0.00542829,40829.0,40825.0,0.53383]
[1646416112834,0.00542829,40829.0,40826.0,0.122547]
[1646416113072,0.00521416,40829.0,40826.0,0.122547]
[1646416113273,0.00542218,40829.0,40826.0,0.122547]
[1646416114072,0.00521416,40829.0,40826.0,0.122547]
[1646416114473,0.00521416,40829.0,40827.0,0.061279]
[1646416116278,0.00521416,40829.0,40826.0,0.122547]
[1646416116480,0.00521416,40829.0,40827.0,0.061278]
[1646416117532,0.00521416,40829.0,40826.0,0.002]
[1646416117735,0.049,40828.0,40826.0,0.002]
[1646416118530,0.049,40828.0,40822.0,0.03]
[1646416118931,0.110296,40828.0,40822.0,0.03]
[1646416119133,0.00020764,40827.0,40822.0,0.03]
[1646416120036,0.15550364,40828.0,40822.0,0.03]
[1646416120338,0.19239279,40828.0,40822.0,0.03]
[1646416120594,0.25356796,40827.0,40822.0,0.03]
[1646416120798,0.049,40826.0,40822.0,0.03]
[1646416121193,0.199,40826.0,40822.0,0.03]
[1646416122394,0.099,40826.0,40822.0,0.03]
[1646416122592,0.049,40826.0,40822.0,0.03]
[1646416122797,0.049,40826.0,40823.0,0.0613]
[1646416122993,0.049,40826.0,40823.0,0.3]
[1646416123195,0.049,40826.0,40822.0,0.08]
[1646416123796,0.099,40826.0,40822.0,0.08]
[1646416124226,0.049,40826.0,40823.0,0.061295]
[1646416124728,0.049,40826.0,40822.0,0.03]
[1646416124931,0.05359183,40826.0,40822.0,0.03]
[1646416125129,0.27318976,40826.0,40822.0,0.03]
[1646416125327,0.32318976,40826.0,40822.0,0.03]
[1646416125727,0.061311,40824.0,40822.0,0.03]
[1646416125932,0.15693838,40823.0,40822.0,0.03]
[1646416126131,0.049,40823.0,40822.0,0.03]
[1646416126330,0.50693705,40823.0,40815.0,0.122616]
[1646416126542,0.323989,40819.0,40808.0,0.00089444]
[1646416126737,0.499,40818.0,40808.0,0.00089444]
[1646416126927,0.1583002,40814.0,40808.0,0.00089444]
[1646416127127,0.01642886,40812.0,40808.0,0.00089444]
[1646416127330,0.049,40811.0,40808.0,0.00089444]
[1646416127529,0.049,40811.0,40805.0,0.2777756]
[1646416128075,0.10795029,40807.0,40805.0,0.2777756]
[1646416128274,0.15695029,40806.0,40805.0,0.2777756]
[1646416128479,0.21828129,40806.0,40805.0,0.2777756]
[1646416128676,0.21828129,40806.0,40805.0,0.3277756]
[1646416128875,0.31828129,40806.0,40805.0,0.3277756]
[1646416130177,0.31828129,40806.0,40805.0,0.2777756]
[1646416132832,0.21828129,40806.0,40805.0,0.2777756]
[1646416133032,0.31828129,40806.0,40805.0,0.2777756]
[1646416134134,0.21828129,40806.0,40805.0,0.2777756]
[1646416134332,0.31828129,40806.0,40805.0,0.2777756]
[1646416136579,0.049,40806.0,40805.0,0.2777756]
[1646416136979,0.03642891,40813.0,40805.0,0.2777756]
[1646416137180,0.004,40812.0,40807.0,0.061312]
[1646416137681,0.004,40812.0,40809.0,0.21910958]
[1646416137880,0.10795029,40810.0,40807.0,0.061312]
[1646416138083,0.004,40812.0,40807.0,0.061312]
[1646416138481,0.061313,40813.0,40807.0,0.061312]
[1646416138682,0.061313,40813.0,40812.0,0.29578585]
[1646416138985,0.16926329,40813.0,40812.0,0.29578585]
[1646416139223,0.21926329,40813.0,40812.0,0.29578585]
[1646416140325,0.16926329,40813.0,40812.0,0.29578585]
[1646416140528,0.05,40819.0,40812.0,0.59578585]
[1646416140726,0.11328989,40822.0,40815.0,0.15]
[1646416140927,0.025,40827.0,40816.0,0.3]
[1646416141326,0.001,40823.0,40818.0,0.18510726]
[1646416141529,0.001,40823.0,40819.0,0.3]
[1646416142987,0.001,40823.0,40819.0,0.422589]
[1646416142988,0.062301,40823.0,40819.0,0.422589]
[1646416143191,0.061301,40823.0,40819.0,0.422589]
[1646416143388,0.05,40824.0,40819.0,0.70886932]
[1646416143790,0.079,40827.0,40819.0,0.70886932]
[1646416143988,0.029,40827.0,40819.0,0.70886932]
[1646416144586,0.061292,40826.0,40819.0,0.70886932]
[1646416145187,0.061292,40826.0,40819.0,0.122589]
[1646416145393,0.3,40825.0,40813.0,0.1179]
[1646416145589,0.061311,40823.0,40813.0,0.1179]
[1646416145788,0.3,40822.0,40813.0,0.1179]
[1646416145989,0.375,40822.0,40811.0,0.2598]
[1646416146188,0.375,40822.0,40813.0,0.25063085]
[1646416146189,0.1,40821.0,40813.0,0.25063085]
[1646416147429,0.061317,40820.0,40813.0,0.25063085]
[1646416147631,0.061317,40820.0,40816.0,0.29282279]
[1646416148433,0.061317,40820.0,40816.0,0.35412279]
[1646416150034,0.061317,40820.0,40807.0,0.5251]
[1646416150235,0.3,40819.0,40809.0,0.06124943]
[1646416150478,0.061316,40817.0,40809.0,0.06124943]
[1646416150677,0.061316,40817.0,40814.0,0.25561174]
[1646416151281,0.061316,40817.0,40814.0,0.30561174]
[1646416151684,0.061316,40817.0,40815.0,0.061305]
[1646416152282,0.05,40819.0,40815.0,0.061305]
[1646416152482,0.061303,40820.0,40815.0,0.061305]
[1646416152882,0.111303,40820.0,40815.0,0.061305]
[1646416153084,0.111303,40820.0,40818.0,0.26130607]
[1646416153883,0.111303,40820.0,40815.0,0.061305]
[1646416159481,0.122626,40818.0,40814.0,0.28056028]
[1646416159990,0.172626,40818.0,40814.0,0.28056028]
[1646416160383,0.05,40818.0,40814.0,0.28056028]
[1646416160783,0.075,40822.0,40814.0,0.28056028]
[1646416160982,0.025,40822.0,40814.0,0.28056028]
[1646416161182,0.061312,40819.0,40814.0,0.28056028]
[1646416162629,0.061312,40819.0,40814.0,0.54254789]
[1646416162830,0.061312,40819.0,40815.0,0.061308]
[1646416165135,0.1363,40822.0,40815.0,0.061308]
[1646416165336,0.0863,40822.0,40815.0,0.061308]
[1646416165590,0.1363,40822.0,40815.0,0.061308]
[1646416166590,0.1113,40822.0,40821.0,0.23908315]
[1646416166794,0.05,40822.0,40821.0,0.23908315]
[1646416166993,0.1,40827.0,40821.0,0.23908315]
[1646416167190,0.06188915,40828.0,40824.0,0.19718598]
[1646416167395,0.06588915,40828.0,40827.0,0.289077]
[1646416167592,0.15977387,40828.0,40827.0,0.289077]
[1646416167991,0.15977387,40828.0,40824.0,0.19718598]
[1646416168192,0.04088915,40828.0,40824.0,0.19718598]
[1646416168391,0.004,40828.0,40825.0,0.061289]
[1646416168693,0.00528551,40829.0,40825.0,0.061289]
[1646416169833,0.00528551,40829.0,40828.0,0.06865903]
[1646416170038,0.00528551,40829.0,40828.0,0.21865903]
[1646416170435,0.00528551,40829.0,40828.0,0.46316879]
[1646416170633,0.004,40834.0,40829.0,1.35]
[1646416170835,0.004,40834.0,40830.0,0.25671478]
[1646416171035,0.004,40834.0,40833.0,0.15]
[1646416171234,0.01,40839.0,40833.0,0.15]
[1646416171435,0.002,40836.0,40833.0,0.15]
[1646416172135,0.002,40836.0,40830.0,0.44050878]
[1646416172435,0.002,40836.0,40833.0,0.06127]
[1646416172640,0.01,40839.0,40833.0,0.21127]
[1646416172836,0.01,40839.0,40833.0,0.06127]
[1646416173280,0.01,40839.0,40833.0,0.21127]
[1646416173681,0.01,40839.0,40837.0,0.18207885]
[1646416174080,0.01,40839.0,40833.0,0.21127]
[1646416174882,0.061277,40837.0,40833.0,0.21127]
[1646416175083,0.061277,40837.0,40834.0,0.21257106]
[1646416175287,0.061277,40837.0,40833.0,0.21127]
[1646416175882,0.06150066,40837.0,40833.0,0.21127]
[1646416176282,0.06150066,40837.0,40833.0,0.40113282]
[1646416176483,0.06150066,40837.0,40833.0,0.06127]
[1646416176932,0.06,40839.0,40833.0,0.21127]
[1646416177131,0.00021477,40837.0,40833.0,0.21127]
[1646416177532,0.00021477,40837.0,40834.0,0.16376948]
[1646416178131,0.01,40839.0,40838.0,0.2987439]
[1646416179132,0.01,40839.0,40837.0,0.06127]
[1646416179732,0.01,40839.0,40834.0,0.16376948]
[1646416180134,0.01,40839.0,40838.0,0.24080773]
[1646416181192,0.00020803,40841.0,40839.0,1.35]
[1646416181385,0.00020803,40841.0,40840.0,0.43461994]
[1646416181582,0.00020803,40841.0,40840.0,0.5179]
[1646416181783,0.41,40843.0,40837.0,0.061268]
[1646416181982,0.41,40843.0,40836.0,0.122536]
[1646416181983,0.41008442,40843.0,40836.0,0.122536]
[1646416182381,0.41008442,40843.0,40837.0,0.15]
[1646416182382,0.06127,40842.0,40837.0,0.15]
[1646416182583,0.06127,40842.0,40837.0,0.211267]
[1646416182783,0.46008442,40843.0,40838.0,0.23348176]
[1646416182983,0.46,40843.0,40838.0,0.23348176]
[1646416183188,7.82e-05,40842.0,40838.0,0.23348176]
[1646416183581,0.0613482,40842.0,40838.0,0.23348176]
[1646416184236,0.06127,40842.0,40838.0,0.23348176]
[1646416184435,0.06148761,40842.0,40838.0,0.23348176]
[1646416185036,0.00021761,40842.0,40838.0,0.23348176]
[1646416185237,0.172544,40845.0,40838.0,0.23348176]
[1646416185435,0.00021761,40842.0,40838.0,0.23348176]
[1646416185840,0.00021761,40842.0,40840.0,0.15]
[1646416186036,0.00021761,40842.0,40841.0,0.3]
[1646416186236,0.00021761,40842.0,40841.0,0.50843488]
[1646416186437,0.002,40843.0,40841.0,0.3]
[1646416186638,0.061265,40847.0,40841.0,0.361265]
[1646416186840,0.061265,40847.0,40845.0,0.23213323]
[1646416187639,0.061265,40847.0,40841.0,0.361265]
[1646416188686,0.061265,40847.0,40843.0,0.31397219]
[1646416189087,0.0564681,40847.0,40843.0,0.31397219]
[1646416189888,0.0564681,40847.0,40838.0,0.1226]
[1646416190092,0.056265,40847.0,40838.0,0.1226]
[1646416190587,0.172531,40849.0,40838.0,0.1226]
[1646416190588,0.061276,40843.0,40838.0,0.1226]
[1646416190789,0.061276,40843.0,40839.0,0.26585241]
[1646416190991,0.061276,40843.0,40839.0,0.31190406]
[1646416191589,0.0614762,40843.0,40839.0,0.31190406]
[1646416192531,0.061276,40843.0,40839.0,0.31190406]
[1646416192732,0.06146976,40843.0,40839.0,0.31190406]
[1646416192932,0.06146976,40843.0,40837.0,0.3]
[1646416193137,0.049,40842.0,40830.0,0.122557]
[1646416193334,0.049,40842.0,40828.0,0.1188]
[1646416193335,0.061289,40839.0,40828.0,0.1188]
[1646416193538,0.049,40838.0,40828.0,0.4188]
[1646416193936,0.049,40838.0,40828.0,0.71421413]
[1646416194137,0.0001943,40836.0,40829.0,0.28649283]
[1646416194335,0.049,40835.0,40828.0,0.83678113]
[1646416194535,0.049,40835.0,40828.0,0.71798113]
[1646416194736,0.049,40835.0,40828.0,0.93478837]
[1646416195035,0.110287,40835.0,40828.0,0.71798113]
[1646416195238,0.0001943,40834.0,40828.0,0.71798113]
[1646416195485,0.049,40833.0,40822.0,0.1233]
[1646416195882,0.3,40832.0,40822.0,0.1233]
[1646416196085,0.049,40831.0,40822.0,0.1233]
[1646416196283,0.149,40831.0,40822.0,0.1233]
[1646416196482,0.06149273,40830.0,40823.0,0.28496848]
[1646416196682,0.049,40829.0,40823.0,0.28496848]
[1646416196882,0.049,40829.0,40823.0,0.27996848]
[1646416197884,0.044,40829.0,40823.0,0.27996848]
[1646416199539,0.044,40829.0,40824.0,0.061293]
[1646416199936,0.044,40829.0,40823.0,0.27996848]
[1646416203390,0.044,40829.0,40819.0,0.122]
[1646416203391,0.3,40828.0,40819.0,0.122]
[1646416203590,0.061307,40826.0,40817.0,0.3688]
[1646416203792,0.349,40825.0,40815.0,0.1233]
[1646416203994,0.049,40824.0,40815.0,0.1233]
[1646416204193,0.149,40824.0,40815.0,0.1233]
[1646416204403,0.149,40824.0,40817.0,0.30117741]
[1646416204791,0.06131,40822.0,40814.0,0.15]
[1646416204992,0.349,40821.0,40814.0,0.15]
[1646416205191,0.399,40821.0,40814.0,0.15]
[1646416206090,0.399,40821.0,40814.0,0.09176919]
[1646416206295,0.099,40821.0,40814.0,0.09176919]
[1646416206733,0.049,40821.0,40814.0,0.332971]
[1646416207334,0.049,40821.0,40813.0,0.29113562]
[1646416207536,0.049,40821.0,40814.0,0.09176919]
[1646416207736,0.149,40821.0,40814.0,0.09176919]
[1646416208139,0.043,40821.0,40820.0,0.2924101]
[1646416208435,0.183,40821.0,40820.0,0.2924101]
[1646416208837,0.043,40821.0,40820.0,0.5924101]
[1646416209043,0.003,40824.0,40820.0,0.89348347]
[1646416209238,0.003,40824.0,40823.0,0.09176919]
[1646416209438,0.003,40824.0,40823.0,0.39176919]
[1646416210986,0.002,40827.0,40823.0,0.39176919]
[1646416210987,0.00019486,40830.0,40823.0,0.39176919]
[1646416211385,0.00219486,40830.0,40823.0,0.39176919]
[1646416211587,0.06348286,40830.0,40824.0,0.1880263]
[1646416211785,0.063288,40830.0,40824.0,0.1880263]
[1646416212184,0.06348286,40830.0,40824.0,0.1880263]
[1646416212788,0.00019486,40830.0,40825.0,0.06128074]
[1646416212990,0.11377241,40841.0,40830.0,0.061274]
[1646416212991,0.13877241,40841.0,40830.0,0.061274]
[1646416213185,0.025,40841.0,40831.0,0.3]
[1646416213385,0.002,40834.0,40831.0,0.3]
[1646416213784,0.002,40834.0,40833.0,0.28804371]
[1646416213985,0.002,40834.0,40833.0,0.3]
[1646416214436,0.002,40834.0,40831.0,0.39176919]
[1646416214637,0.00019499,40836.0,40831.0,0.39176919]
[1646416215038,0.00019499,40836.0,40831.0,0.66637336]
[1646416215238,0.00019499,40836.0,40833.0,0.31301304]
[1646416215438,0.004,40839.0,40833.0,0.31301304]
[1646416215940,0.00019499,40837.0,40834.0,0.3]
[1646416216140,0.00019499,40837.0,40830.0,0.04141]
[1646416216341,0.00019499,40837.0,40825.0,0.20946919]
[1646416216541,0.049,40836.0,40825.0,0.20946919]
[1646416216744,0.049,40836.0,40825.0,0.1177]
[1646416216940,0.18314141,40835.0,40825.0,0.1177]
[1646416217140,0.23289,40836.0,40825.0,0.37622614]
[1646416217141,0.00019499,40833.0,40825.0,0.37622614]
[1646416217341,0.049,40832.0,40825.0,0.37622614]
[1646416217540,0.061298,40830.0,40825.0,0.25852614]
[1646416217740,0.110298,40830.0,40824.0,0.3159721]
[1646416217987,0.160298,40830.0,40824.0,0.3159721]
[1646416218187,0.110493,40830.0,40824.0,0.3159721]
[1646416218988,0.160493,40830.0,40822.0,0.09176919]
[1646416219187,0.160298,40830.0,40822.0,0.09176919]
[1646416219392,0.16049284,40830.0,40822.0,0.09176919]
[1646416219989,0.16049284,40830.0,40824.0,0.22261266]
[1646416220389,0.160298,40830.0,40824.0,0.22261266]
[1646416220591,0.16049284,40830.0,40823.0,0.361291]
[1646416220789,0.16049284,40830.0,40822.0,0.09176919]
[1646416220991,0.16049284,40830.0,40817.0,0.4167]
[1646416221190,0.09919484,40830.0,40817.0,0.3967]
[1646416221389,0.061305,40827.0,40817.0,0.3967]
[1646416221588,0.061305,40827.0,40821.0,0.2297512]
[1646416221841,0.061305,40827.0,40817.0,0.3967]
[1646416221842,0.061305,40827.0,40820.0,0.09176919]
[1646416222441,0.061305,40827.0,40817.0,0.67256991]
[1646416222842,0.061305,40827.0,40818.0,0.22381022]
[1646416223242,0.061305,40827.0,40817.0,0.67256991]
[1646416224042,0.061305,40827.0,40817.0,0.57586991]
[1646416224242,0.07346333,40827.0,40817.0,0.57586991]
[1646416224545,0.061308,40824.0,40815.0,0.37586919]
[1646416224742,0.049,40823.0,40815.0,0.09176919]
[1646416224943,0.172626,40820.0,40815.0,0.09176919]
[1646416225142,0.221626,40820.0,40815.0,0.09176919]
[1646416225589,0.061313,40819.0,40817.0,0.46399043]
[1646416225984,0.061313,40819.0,40817.0,0.25608034]
[1646416226986,0.061313,40819.0,40817.0,0.47156004]
[1646416227189,0.061313,40819.0,40817.0,0.25608034]
[1646416228087,0.06204728,40830.0,40817.0,0.25608034]
[1646416228287,0.049,40828.0,40823.0,0.25230875]
[1646416228486,0.1,40829.0,40823.0,0.25230875]
[1646416228487,0.049,40827.0,40823.0,0.25230875]
[1646416228688,0.049,40826.0,40817.0,0.25608034]
[1646416228891,0.110303,40826.0,40817.0,0.25608034]
[1646416229327,0.110303,40826.0,40824.0,0.31973199]
[1646416230230,0.160303,40826.0,40824.0,0.31973199]
[1646416230430,0.099,40826.0,40824.0,0.31973199]
[1646416230631,0.061303,40825.0,40824.0,0.31973199]
[1646416230829,0.111303,40825.0,40824.0,0.31973199]
[1646416231030,0.111303,40825.0,40816.0,0.422596]
[1646416231235,0.061303,40825.0,40816.0,0.422596]
[1646416231531,0.061303,40825.0,40819.0,0.17323598]
[1646416231933,0.061303,40825.0,40820.0,0.22715104]
[1646416232132,0.061303,40825.0,40820.0,0.51793923]
[1646416232731,0.061303,40825.0,40820.0,0.29078819]
[1646416233784,0.061303,40825.0,40824.0,0.26623078]
[1646416234585,0.05,40826.0,40824.0,0.26623078]
[1646416234786,0.111293,40828.0,40824.0,0.26623078]
[1646416235585,0.111293,40828.0,40820.0,0.59078819]
[1646416235786,0.122604,40826.0,40820.0,0.29078819]
[1646416236187,0.0613,40826.0,40820.0,0.29078819]
[1646416236587,0.0613,40826.0,40821.0,0.23329927]
[1646416237638,0.0563,40826.0,40821.0,0.23329927]
[1646416240140,0.0563,40826.0,40820.0,0.29078819]
[1646416240988,0.0563,40826.0,40816.0,0.09176919]
[1646416241288,0.0563,40826.0,40824.0,0.0001]
[1646416241886,0.14,40825.0,40824.0,0.0001]
[1646416242288,0.19,40825.0,40824.0,0.0001]
[1646416242690,0.05,40825.0,40824.0,0.0001]
[1646416243089,0.0563,40826.0,40824.0,0.0001]
[1646416243693,0.38904646,40825.0,40824.0,0.0001]
[1646416243989,0.42436036,40825.0,40824.0,0.0001]
[1646416244234,0.199,40825.0,40824.0,0.0001]
[1646416245242,0.26032631,40825.0,40824.0,0.0001]
[1646416245436,0.36032631,40825.0,40824.0,0.0001]
[1646416245835,0.6,40824.0,40816.0,0.09176919]
[1646416246034,0.061319,40822.0,40816.0,0.09176919]
[1646416246235,0.049,40821.0,40816.0,0.09176919]
[1646416247842,0.049,40821.0,40813.0,0.3]
[1646416248087,0.05632,40818.0,40813.0,0.3]
[1646416248287,0.049,40817.0,40813.0,0.3]
[1646416248688,0.049,40817.0,40812.0,0.28575804]
[1646416249687,0.049,40817.0,40811.0,0.31769342]
[1646416250790,0.049,40817.0,40811.0,0.56719872]
[1646416250990,0.049,40817.0,40811.0,0.2495053]
[1646416251737,0.049,40817.0,40809.0,0.3]
[1646416251937,0.061322,40814.0,40808.0,0.3]
[1646416252138,0.061322,40814.0,40809.0,0.32637269]
[1646416254140,0.05,40815.0,40810.0,0.21345852]
[1646416254341,0.05,40815.0,40811.0,0.3]
[1646416254539,0.086309,40818.0,40811.0,0.3]
[1646416254540,0.136309,40818.0,40811.0,0.3]
[1646416255343,0.136309,40818.0,40811.0,0.361308]
[1646416255986,0.136309,40818.0,40816.0,0.31664133]
[1646416259238,0.136309,40818.0,40811.0,0.3]
[1646416259638,0.136309,40818.0,40810.0,0.21345852]
[1646416259841,0.136309,40818.0,40811.0,0.3]
[1646416260042,0.05,40818.0,40812.0,0.09176919]
[1646416260241,0.0613,40821.0,40817.0,0.2368555]
[1646416260440,0.0613,40821.0,40818.0,0.3]
[1646416261941,0.0613,40821.0,40814.0,0.09176919]
[1646416261942,0.14,40819.0,40814.0,0.09176919]
[1646416262140,0.0613,40821.0,40814.0,0.09176919]
[1646416262341,0.05,40819.0,40814.0,0.09176919]
[1646416262741,0.0613,40821.0,40814.0,0.3241522]
[1646416262742,0.1113,40821.0,40814.0,0.3241522]
[1646416262988,0.1113,40821.0,40815.0,0.3]
[1646416263187,0.0613,40821.0,40815.0,0.3]
[1646416263985,0.0613,40821.0,40815.0,0.49374864]
[1646416264388,0.0613,40821.0,40815.0,0.3]
[1646416264987,0.0613,40821.0,40818.0,0.09176919]
[1646416265189,0.0613,40821.0,40819.0,0.3]